bitfinex/quotes_SOLUSD_20251120
["timestamp","ask_amount","ask_price","bid_price","bid_amount"]
[1763655431016,30.89839193,133.96,133.95,0.1]
[1763655431220,9.78882769,133.96,133.95,0.1]
[1763655431542,12.77743193,133.96,133.95,0.1]
[1763655431743,22.56625962,133.96,133.95,0.1]
[1763655431927,50.0,133.99,133.95,0.1]
[1763655432240,18.12096,133.97,133.96,2.16]
[1763655432536,27.90978769,133.97,133.96,2.16]
[1763655432923,79.90978769,133.97,133.95,0.1]
[1763655433124,27.90978769,133.92,133.91,2.16]
[1763655433336,40.68721962,133.92,133.91,2.16]
[1763655434038,40.68721962,133.92,133.82,1.93593088]
[1763655434039,18.12096,133.84,133.82,1.93593088]
[1763655434247,24.56625962,133.83,133.82,1.93593088]
[1763655434536,50.0,133.78,133.68,3.90321598]
[1763655434706,9.78882769,133.77,133.68,3.90321598]
[1763655434903,50.0,133.83,133.69,0.69]
[1763655435132,18.12096,133.8,133.69,0.69]
[1763655435508,12.77743193,133.77,133.69,0.69]
[1763655435709,12.77743193,133.76,133.69,0.69]
[1763655435959,12.77743193,133.7,133.67,2.85]
[1763655436103,9.78882769,133.71,133.61,3.9021953]
[1763655436104,12.77743193,133.68,133.61,3.9021953]
[1763655436310,59.78882769,133.71,133.61,3.9021953]
[1763655436548,12.77743193,133.63,133.61,3.9021953]
[1763655436842,9.78882769,133.69,133.61,3.9021953]
[1763655437003,9.78882769,133.69,133.57,2.85]
[1763655437004,12.77743193,133.62,133.57,2.85]
[1763655437208,12.77743193,133.6,133.57,2.85]
[1763655437434,18.12096,133.66,133.58,0.69]
[1763655437637,12.77743193,133.6,133.57,2.16]
[1763655437841,12.77743193,133.6,133.48,20.72835299]
[1763655437842,18.12096,133.55,133.42,1e-08]
[1763655438014,9.78882769,133.34,133.11,12.77743193]
[1763655438226,9.78882769,133.32,133.25,0.69]
[1763655438420,12.77743193,133.3,133.25,0.69]
[1763655438615,12.77743193,133.3,133.17,2.16]
[1763655438616,12.77743193,133.3,133.24,1.62593088]
[1763655438843,12.77743193,133.31,133.24,1.62593088]
[1763655439022,2.17999959,133.33,133.24,1.62593088]
[1763655439225,18.12096,133.32,133.24,1.62593088]
[1763655439438,2.17999959,133.33,133.24,1.62593088]
[1763655439639,12.77743193,133.32,133.24,1.62593088]
[1763655439938,2.17999959,133.33,133.25,12.77743193]
[1763655440141,2.17999959,133.33,133.29,12.77743193]
[1763655440343,1.45999959,133.33,133.25,7.5045417]
[1763655440651,12.77743193,133.28,133.24,1.62593088]
[1763655440854,1.45999959,133.33,133.25,0.65]
[1763655441008,1.45999959,133.33,133.27,12.77743193]
[1763655441212,1.45999959,133.33,133.29,12.77743193]
[1763655441427,1.45999959,133.33,133.28,0.65]
[1763655441629,1.45999959,133.33,133.24,1.62593088]
[1763655441854,18.84096,133.32,133.24,1.62593088]
[1763655442016,1.45999959,133.33,133.27,30.89839193]
[1763655442212,1.45999959,133.33,133.29,12.77743193]
[1763655442515,1.45999959,133.33,133.29,9.78882769]
[1763655442733,3.91831587,133.35,133.33,9.78882769]
[1763655443053,3.88831587,133.35,133.32,9.78882769]
[1763655443231,2.0,133.54,133.34,30.89839193]
[1763655443232,16.68263324,133.47,133.34,30.89839193]
[1763655443424,12.77743193,133.45,133.34,18.12096]
[1763655443649,0.72,133.46,133.41,12.77743193]
[1763655443941,3.90520131,133.47,133.42,14.93743193]
[1763655444183,0.72,133.5,133.42,2.16]
[1763655444310,0.72,133.5,133.43,12.77743193]
[1763655444511,0.72,133.54,133.47,12.77743193]
[1763655444718,0.72,133.54,133.4,18.12096]
[1763655444719,12.77743193,133.48,133.28,14.77743191]
[1763655444945,18.84096,133.47,133.38,12.77743193]
[1763655445142,12.77743193,133.45,133.39,14.93743193]
[1763655445350,12.77743193,133.44,133.39,2.16]
[1763655445554,26.39978147,133.57,133.41,12.77743193]
[1763655445555,12.77743193,133.47,133.41,12.77743193]
[1763655445717,12.77743193,133.47,133.39,2.16]
[1763655445718,0.72,133.5,133.46,12.77743193]
[1763655445917,0.72,133.54,133.48,12.77743193]
[1763655446149,0.91624949,133.59,133.53,12.77743193]
[1763655446325,0.91624949,133.59,133.49,11.94882769]
[1763655446326,0.72,133.62,133.58,12.77743193]
[1763655446647,12.77743193,133.66,133.6,12.77743193]
[1763655446843,0.19624949,133.65,133.6,12.77743193]
[1763655447045,0.91624949,133.71,133.64,12.77743193]
[1763655447218,12.77743193,133.65,133.59,2.16]
[1763655447428,12.77743193,133.65,133.45,30.75743193]
[1763655447429,3.91754081,133.35,133.14,0.65]
[1763655447662,3.91754081,133.35,133.09,0.65]
[1763655447663,18.12096,133.21,133.09,0.65]
[1763655447816,18.12096,133.21,133.11,2.26]
[1763655447817,50.0,133.18,133.11,2.26]
[1763655448045,12.77743193,133.16,133.11,2.26]
[1763655448243,18.12096,133.21,133.12,2.91]
[1763655448476,12.77743193,133.18,133.13,2.26]
[1763655448679,52.0,133.32,133.13,2.26]
[1763655448680,18.12096,133.32,133.13,2.91]
[1763655448876,18.12096,133.32,133.14,0.65]
[1763655448877,18.12096,133.22,133.14,0.65]
[1763655449079,3.91754081,133.35,133.15,68.73103266]
[1763655449080,12.77743193,133.34,133.15,68.73103266]
[1763655449242,3.91754081,133.35,133.16,2.26]
[1763655449450,12.77743193,133.25,133.16,20.38096]
[1763655449675,12.77743193,133.27,133.17,10.49882769]
[1763655449882,50.0,133.32,133.17,2.99]
[1763655450186,12.77743193,133.2,133.18,0.71]
[1763655450673,12.05743193,133.19,133.18,0.71]
[1763655450874,12.77743193,133.21,133.19,2.28]
[1763655451084,18.12096,133.26,133.19,2.28]
[1763655451085,0.69,133.34,133.19,2.28]
[1763655451255,12.77743193,133.27,133.2,0.71]
[1763655451447,3.91754081,133.35,133.2,31.60839193]
[1763655451448,12.77743193,133.31,133.2,31.60839193]
[1763655451650,12.77743193,133.23,133.03,1.99999998]
[1763655451849,12.77743193,133.23,133.16,0.71]
[1763655452170,12.77743193,133.26,133.17,2.28]
[1763655452478,12.77743193,133.28,133.18,2.99]
[1763655452776,12.77743193,133.26,133.19,2.28]
[1763655452943,12.77743193,133.31,133.2,12.77743193]
[1763655453146,12.77743193,133.31,133.2,13.48743193]
[1763655453346,12.77743193,133.24,133.07,1.99999998]
[1763655453592,12.77743193,133.2,133.16,0.71]
[1763655453884,50.0,133.3,133.16,0.71]
[1763655453885,12.77743193,133.22,133.17,2.28]
[1763655454184,12.77743193,133.23,133.17,2.28]
[1763655454385,12.77743193,133.21,133.17,0.71]
[1763655454676,0.69,133.31,133.06,1.99999998]
[1763655454677,12.77743193,133.24,133.18,2.99]
[1763655454861,18.12096,133.29,133.19,2.28]
[1763655455044,11.86468874,133.22,133.2,2.28]
[1763655455249,0.19624949,133.31,133.21,0.71]
[1763655455250,11.86468874,133.27,133.21,0.71]
[1763655455662,0.19624949,133.34,133.18,11.86468874]
[1763655455863,11.86468874,133.2,133.09,0.71]
[1763655456167,18.12096,133.1,133.01,18.02]
[1763655456375,18.12096,133.12,133.02,2.99]
[1763655456577,52.0,133.18,133.03,0.71]
[1763655456578,11.86468874,133.09,133.03,0.71]
[1763655457286,2.69,133.18,133.03,0.71]
[1763655457493,7.50736231,133.21,133.04,11.86468874]
[1763655457494,11.86468874,133.14,133.04,11.86468874]
[1763655457671,11.86468874,133.15,133.06,11.86468874]
[1763655457874,11.86468874,133.2,133.1,11.86468874]
[1763655458190,11.86468874,133.2,133.03,0.71]
[1763655458191,11.86468874,133.13,133.03,0.71]
[1763655458367,11.86468874,133.2,133.04,2.28]
[1763655458368,11.86468874,133.09,133.04,2.28]
[1763655458568,18.12096,133.17,133.05,0.71]
[1763655459583,11.86468874,133.1,133.05,0.71]
[1763655459898,11.86468874,133.2,133.05,0.71]
[1763655459899,18.12096,133.18,133.05,0.71]
[1763655460102,50.88624949,133.24,133.07,9.78882769]
[1763655460410,11.86468874,133.2,133.07,9.78882769]
[1763655460603,11.86468874,133.2,133.05,0.71]
[1763655460604,11.86468874,133.16,133.09,9.78882769]
[1763655460816,11.86468874,133.12,133.08,0.71]
[1763655460977,50.69,133.21,133.08,0.71]
[1763655460978,0.69,133.21,133.09,0.71]
[1763655461300,11.86468874,133.16,133.09,0.71]
[1763655461502,7.2,133.11,133.05,10.49882769]
[1763655461744,7.2,133.11,133.05,0.71]
[1763655462008,7.2,133.11,133.07,11.86468874]
[1763655462179,7.2,133.11,133.07,21.65351643]
[1763655462370,7.2,133.11,133.08,0.71]
[1763655462903,6.48,133.11,133.09,9.78882769]
[1763655463087,5.01,133.11,133.09,39.77447643]
[1763655463283,5.01,133.11,133.1,21.65351643]
[1763655463508,50.0,133.27,133.1,21.65351643]
[1763655463509,0.19624949,133.26,133.13,18.12096]
[1763655463671,11.86468874,133.25,133.18,9.78882769]
[1763655463869,11.86468874,133.25,133.18,11.86468874]
[1763655464076,0.69,133.27,133.21,18.12096]
[1763655464375,0.19624949,133.31,133.21,18.12096]
[1763655464376,12.55468874,133.31,133.25,9.78882769]
[1763655464584,11.86468874,133.3,133.25,9.78882769]
[1763655464787,0.69,133.31,133.25,9.78882769]
[1763655464989,11.86468874,133.34,133.28,9.78882769]
[1763655465175,0.69,133.35,133.29,2.26]
[1763655465371,0.69,133.34,133.29,2.26]
[1763655465577,50.0,133.42,133.21,18.12096]
[1763655465578,11.86468874,133.36,133.25,18.12096]
[1763655465879,18.12096,133.19,133.14,2.28]
[1763655466199,18.12096,133.19,133.01,0.71]
[1763655466200,18.12096,133.15,133.13,2.28]
[1763655466402,0.19624949,133.18,133.13,2.28]
[1763655466403,18.12096,133.14,133.13,2.28]
[1763655466610,18.12096,133.14,133.04,0.71]
[1763655466611,18.12096,133.11,133.04,0.71]
[1763655466842,11.86468874,133.07,133.05,2.28]
[1763655467213,0.69,133.15,133.0,29.24]
[1763655467214,18.12096,133.14,133.06,2.28]
[1763655467411,18.12096,133.14,133.0,29.24]
[1763655467413,11.86468874,133.06,133.0,29.24]
[1763655467714,18.12096,133.04,133.01,2.28]
[1763655467942,18.12096,133.06,133.01,2.28]
[1763655468450,18.12096,133.01,133.0,11.2]
[1763655468735,18.12096,133.02,133.0,13.48]
[1763655468907,12.55468874,133.01,133.0,13.48]
[1763655469103,30.67564874,133.01,133.0,13.48]
[1763655469308,30.67564874,133.01,132.97,0.1]
[1763655469309,18.12096,132.98,132.97,0.1]
[1763655469535,29.98564874,132.98,132.97,2.38]
[1763655469734,29.98564874,132.98,132.95,1.93593088]
[1763655469735,30.67564874,132.98,132.95,1.93593088]
[1763655469943,18.12096,132.93,132.92,2.28]
[1763655470109,29.98564874,132.93,132.92,2.28]
[1763655470310,18.12096,132.99,132.92,2.28]
[1763655470510,18.12096,132.99,132.93,0.66]
[1763655470714,18.12096,132.94,132.89,1.16]
[1763655470912,18.12096,132.94,132.9,2.28]
[1763655471111,11.86468874,132.93,132.9,2.94]
[1763655471339,18.12096,133.02,132.91,0.66]
[1763655471544,50.0,133.16,132.91,0.66]
[1763655471545,50.0,133.09,132.91,10.44882769]
[1763655471710,11.86468874,133.02,132.94,9.78882769]
[1763655472020,11.86468874,133.04,132.96,9.78882769]
[1763655472356,0.19624949,133.08,132.98,9.78882769]
[1763655472511,11.86468874,133.06,132.98,9.78882769]
[1763655472828,11.86468874,133.06,133.0,9.78882769]
[1763655473030,0.19624949,133.1,133.0,9.78882769]
[1763655473224,0.19624949,133.1,133.02,9.78882769]
[1763655473548,0.19624949,133.1,133.01,12.52468874]
[1763655473549,11.86468874,133.1,133.04,9.78882769]
[1763655473755,0.19624949,133.13,133.06,9.78882769]
[1763655473923,61.86468874,133.2,133.06,9.78882769]
[1763655473924,11.86468874,133.14,133.06,9.78882769]
[1763655474115,0.19624949,133.18,133.08,9.78882769]
[1763655474317,11.86468874,133.15,133.09,18.06]
[1763655474522,0.19624949,133.14,133.09,18.72]
[1763655474720,0.19624949,133.21,133.1,10.44882769]
[1763655475045,0.19624949,133.21,133.12,9.78882769]
[1763655475237,11.86468874,133.18,133.12,10.44882769]
[1763655475634,11.86468874,133.18,133.13,2.92]
[1763655475949,0.19624949,133.17,133.13,0.66]
[1763655476120,0.19624949,133.17,132.94,50.0]
[1763655476121,0.19624949,133.24,133.14,2.92]
[1763655476316,7.61160663,133.48,133.14,2.92]
[1763655476317,0.19624949,133.26,133.15,9.78882769]
[1763655476525,0.19624949,133.31,133.21,9.78882769]
[1763655476732,52.0,133.38,133.26,11.86468874]
[1763655476928,0.19624949,133.35,133.26,11.86468874]
[1763655477149,0.2,133.41,133.27,10.44882769]
[1763655477150,11.86468874,133.34,133.27,10.44882769]
[1763655477449,0.19624949,133.39,133.29,9.78882769]
[1763655477636,0.19624949,133.39,133.29,21.65351643]
[1763655477839,0.2,133.41,133.33,9.78882769]
[1763655478068,11.86468874,133.38,133.3,30.58468874]
[1763655478226,11.86468874,133.37,133.34,2.26]
[1763655478421,11.86468874,133.39,133.34,2.26]
[1763655478623,11.86468874,133.39,133.35,0.66]
[1763655478842,0.2,133.41,133.31,0.66]
[1763655478843,29.98564874,133.36,133.31,0.66]
[1763655479021,11.86468874,133.36,133.32,2.26]
[1763655479346,0.39624949,133.41,133.33,21.65351643]
[1763655479347,11.86468874,133.4,133.33,21.65351643]
[1763655479551,0.2,133.41,133.36,21.65351643]
[1763655479850,0.2,133.41,133.37,9.78882769]
[1763655480054,11.86468874,133.39,133.33,0.66]
[1763655480348,0.2,133.41,133.29,0.66]
[1763655480349,11.86468874,133.37,133.29,0.66]
[1763655480559,0.19624949,133.38,133.29,0.66]
[1763655480560,11.86468874,133.32,133.29,0.66]
[1763655480749,9.69605393,133.41,133.3,2.26]
[1763655480750,12.06093823,133.37,133.3,2.26]
[1763655480954,0.19624949,133.38,133.3,2.26]
[1763655481264,0.19624949,133.38,133.31,10.44882769]
[1763655481265,12.06093823,133.38,133.31,10.44882769]
[1763655481427,0.2,133.41,133.37,9.78882769]
[1763655481622,0.2,133.41,133.38,14.12468874]
[1763655481854,0.2,133.41,133.38,2.26]
[1763655482045,11.86468874,133.4,133.38,2.26]
[1763655482244,12.06093823,133.39,133.32,12.52468874]
[1763655482453,11.86468874,133.33,133.28,0.66]
[1763655482654,11.86468874,133.3,133.24,12.52468874]
[1763655482853,0.19624949,133.29,133.25,2.26]
[1763655483060,22.21,133.46,133.25,2.26]
[1763655483061,11.86468874,133.28,133.25,2.26]
[1763655483377,0.19624949,133.33,133.25,2.26]
[1763655483378,0.19624949,133.34,133.27,11.86468874]
[1763655483565,50.2,133.41,133.28,0.66]
[1763655483566,11.86468874,133.37,133.28,0.66]
[1763655483767,0.19624949,133.4,133.35,11.86468874]
[1763655483949,0.19624949,133.4,133.36,2.26]
[1763655483950,11.86468874,133.39,133.36,2.26]
[1763655484149,12.06093823,133.38,133.37,2.26]
[1763655484349,0.19624949,133.38,133.37,2.26]
[1763655484570,0.19624949,133.38,133.26,7.50358852]
[1763655484571,18.12096,133.29,133.23,2.26]
[1763655484768,0.19624949,133.28,133.23,2.26]
[1763655484967,11.86468874,133.26,133.23,2.92]
[1763655485176,18.31720949,133.29,133.23,2.26]
[1763655485369,18.31720949,133.29,133.25,11.86468874]
[1763655485370,0.19624949,133.29,133.25,11.86468874]
[1763655485593,0.19624949,133.36,133.28,11.86468874]
[1763655485756,0.19624949,133.36,133.24,0.66]
[1763655485757,11.86468874,133.29,133.24,0.66]
[1763655485950,0.19624949,133.28,133.24,0.66]
[1763655486151,11.86468874,133.32,133.27,11.86468874]
[1763655486473,11.86468874,133.37,133.31,11.86468874]
[1763655486669,11.86468874,133.37,133.32,2.26]
[1763655486967,0.39624949,133.41,133.35,11.86468874]
[1763655487176,11.86468874,133.4,133.35,11.86468874]
[1763655487350,0.2,133.41,133.35,11.86468874]
[1763655487351,12.26093823,133.41,133.36,11.86468874]
[1763655487549,11.86468874,133.37,133.3,0.66]
[1763655487747,0.19624949,133.36,133.31,2.24]
[1763655488052,0.19624949,133.4,133.31,2.24]
[1763655488255,0.19624949,133.4,133.22,1.99999998]
[1763655488256,61.86468874,133.32,133.22,1.99999998]
[1763655488466,11.86468874,133.23,133.16,0.66]
[1763655488668,11.86468874,133.23,133.03,18.04]
[1763655488669,11.86468874,133.18,133.17,2.26]
[1763655489578,18.12096,133.22,133.17,2.26]
[1763655489769,11.86468874,133.18,133.17,2.26]
[1763655489958,50.0,133.25,133.17,2.26]
[1763655490158,18.12096,133.19,133.17,2.26]
[1763655490381,11.86468874,133.18,133.17,2.26]
[1763655490762,29.98564874,133.18,133.17,2.26]
[1763655491254,11.86468874,133.18,133.17,2.26]
[1763655491451,68.12096,133.15,133.03,18.04]
[1763655491660,11.86468874,133.04,133.01,2.24]
[1763655491895,18.12096,133.07,133.01,2.24]
[1763655492084,11.86468874,133.04,133.01,2.9]
[1763655492391,11.86468874,133.03,133.01,2.24]
[1763655492818,18.12096,133.08,133.01,2.9]
[1763655493122,18.12096,133.12,133.02,10.44882769]
[1763655493259,11.86468874,133.06,133.02,10.44882769]
[1763655493457,18.12096,133.1,133.02,10.44882769]
[1763655493663,11.86468874,133.08,133.03,10.44882769]
[1763655493896,18.12096,133.1,133.05,21.65351643]
[1763655493897,11.86468874,133.1,133.05,21.65351643]
[1763655494178,11.86468874,133.08,133.05,9.78882769]
[1763655494366,11.86468874,133.2,133.08,9.78882769]
[1763655494564,0.19624949,133.24,133.08,9.78882769]
[1763655494565,0.19624949,133.24,133.14,21.65351643]
[1763655494767,11.86468874,133.21,133.16,11.86468874]
[1763655494968,11.86468874,133.18,133.17,2.24]
[1763655495201,0.19624949,133.24,133.17,2.24]
[1763655495202,11.86468874,133.21,133.17,2.24]
[1763655495489,11.86468874,133.2,133.17,2.24]
[1763655495695,0.19624949,133.26,133.18,9.78882769]
[1763655495863,11.86468874,133.24,133.18,22.31351643]
[1763655496195,11.86468874,133.25,133.2,21.65351643]
[1763655496500,0.19624949,133.31,133.24,11.86468874]
[1763655496677,11.86468874,133.36,133.3,11.86468874]
[1763655496887,0.19624949,133.37,133.34,11.86468874]
[1763655497089,0.19624949,133.4,133.36,11.86468874]
[1763655497296,0.2,133.41,133.38,11.86468874]
[1763655497480,0.2,133.41,133.4,11.86468874]
[1763655497681,0.2,133.48,133.4,11.86468874]
[1763655497682,0.19624949,133.47,133.4,11.86468874]
[1763655498013,0.2,133.48,133.39,9.78882769]
[1763655498014,0.2,133.48,133.42,9.78882769]
[1763655498188,0.2,133.48,133.39,18.12096]
[1763655498189,0.2,133.48,133.47,11.86468874]
[1763655498707,0.2,133.48,133.47,22.31351643]
[1763655498914,0.2,133.48,133.47,0.66]
[1763655499215,0.2,133.49,133.48,9.78882769]
[1763655499371,0.19624949,133.58,133.48,21.65351643]
[1763655499576,0.19624949,133.58,133.5,9.78882769]
[1763655499779,37.69082899,133.68,133.5,9.78882769]
[1763655499780,0.19624949,133.65,133.57,11.86468874]
[1763655500014,0.19624949,133.65,133.61,11.86468874]
[1763655500198,0.19624949,133.71,133.64,11.86468874]
[1763655500407,9.5408454,133.76,133.65,2.22]
[1763655500577,0.19624949,133.76,133.67,9.78882769]
[1763655500908,11.86468874,133.75,133.69,11.86468874]
[1763655501106,0.19624949,133.74,133.69,11.86468874]
[1763655501283,0.19624949,133.74,133.67,9.78882769]
[1763655501481,0.19624949,133.79,133.66,9.78882769]
[1763655501779,0.78624949,133.79,133.66,10.43882769]
[1763655502010,18.12096,133.76,133.67,0.65]
[1763655502176,0.19624949,133.75,133.67,0.65]
[1763655502516,11.86468874,133.74,133.68,11.86468874]
[1763655502809,50.59,133.79,133.68,11.86468874]
[1763655502810,0.19624949,133.73,133.68,11.86468874]
[1763655503011,0.78624949,133.78,133.54,1.99999998]
[1763655503201,0.78624949,133.78,133.2,11.86468874]
[1763655503202,3.26378952,133.3,133.2,11.86468874]
[1763655503380,3.26378952,133.3,133.29,11.86468874]
[1763655503702,3.26378952,133.3,133.29,2.26]
[1763655504191,5.26378951,133.3,133.29,2.26]
[1763655504583,3.26378952,133.3,133.29,2.26]
[1763655504997,17.12847825,133.3,133.29,2.26]
[1763655505175,3.26378952,133.3,133.29,2.26]
[1763655505383,17.12847825,133.3,133.29,2.26]
[1763655505575,3.26378952,133.3,133.29,2.26]
[1763655505998,3.26378952,133.3,133.29,14.77468874]
[1763655506188,3.26378952,133.3,133.29,2.26]
[1763655506684,3.26378952,133.3,133.29,14.77468874]
[1763655506888,3.26378952,133.3,133.29,2.91]
[1763655507186,15.77847826,133.3,132.85,37.82625492]
[1763655507382,15.77847826,133.3,133.05,11.86468874]
[1763655507383,11.86468874,133.2,133.05,11.86468874]
[1763655507583,11.86468874,133.19,132.95,50.0]
[1763655507803,11.86468874,133.2,133.05,11.86468874]
[1763655508013,1.99999999,133.22,133.05,11.86468874]
[1763655508014,1.99999999,133.22,133.06,2.26]
[1763655508304,13.86468873,133.22,133.07,2.91]
[1763655508502,1.99999999,133.24,133.19,11.86468874]
[1763655508688,11.86468874,133.22,133.2,2.26]
[1763655508886,13.86468873,133.23,133.21,2.26]
[1763655509081,13.86468873,133.23,133.22,2.26]
[1763655509082,11.86468874,133.23,133.22,2.26]
[1763655509281,11.86468874,133.24,133.22,2.26]
[1763655509514,11.86468874,133.23,133.22,2.26]
[1763655509687,1.99999999,133.24,133.22,2.26]
[1763655510290,1.99999999,133.29,133.22,2.26]
[1763655510597,11.86468874,133.35,133.28,11.86468874]
[1763655510598,1.99999999,133.35,133.28,11.86468874]
[1763655510786,1.99999999,133.38,133.33,11.86468874]
[1763655510987,1.99999999,133.37,133.32,11.86468874]
[1763655511291,0.65,133.42,133.33,11.86468874]
[1763655511292,1.99999999,133.36,133.33,11.86468874]
[1763655511490,1.99999999,133.36,133.35,11.86468874]
[1763655511682,1.99999999,133.41,133.35,14.12468874]
[1763655511915,1.99999999,133.41,133.38,11.86468874]
[1763655512228,1.99999999,133.44,133.4,11.86468874]
[1763655512395,1.99999999,133.42,133.41,2.24]
[1763655512801,1.99999999,133.47,133.41,14.10468874]
[1763655513026,1.99999999,133.47,133.41,2.24]
[1763655513331,1.99999999,133.49,133.46,11.86468874]
[1763655513493,1.99999999,133.48,133.47,2.24]
[1763655513696,50.65,133.57,133.47,2.24]
[1763655513697,1.99999999,133.49,133.47,14.10468874]
[1763655513898,1.99999999,133.48,133.47,2.24]
[1763655514194,13.86468873,133.48,133.47,2.14]
[1763655514403,1.99999999,133.48,133.47,1.59]
[1763655514896,13.86468873,133.48,133.47,1.59]
[1763655515406,1.99999999,133.42,133.41,2.24]
[1763655515640,23.65351642,133.42,133.41,2.24]
[1763655515931,1.99999999,133.35,133.26,12.53468874]
[1763655516098,13.86468873,133.35,133.34,20.26]
[1763655516299,13.86468873,133.35,133.23,0.67]
[1763655516300,1.99999999,133.28,133.23,0.67]
[1763655516536,1.99999999,133.29,133.26,11.86468874]
[1763655516826,1.27999999,133.35,133.28,12.96981847]
[1763655517140,1.27999999,133.35,133.26,9.78882769]
[1763655517427,1.27999999,133.37,133.34,12.96981847]
[1763655517733,1.27999999,133.39,133.36,12.96981847]
[1763655518027,1.27999999,133.39,133.27,1.39]
[1763655518028,1.27999999,133.31,133.22,0.67]
[1763655518240,1.27999999,133.31,133.23,2.24]
[1763655518423,14.24981846,133.26,133.23,2.24]
[1763655518629,50.0,133.3,133.23,2.24]
[1763655518630,1.27999999,133.24,133.23,2.24]
[1763655518802,1.27999999,133.28,133.23,15.20981847]
[1763655519000,1.27999999,133.25,133.23,2.24]
[1763655519301,18.12096,133.27,133.23,2.24]
[1763655519302,1.27999999,133.24,133.23,2.24]
[1763655519496,12.96981847,133.24,133.23,2.24]
[1763655519721,32.37077846,133.24,133.23,1.52]
[1763655519896,24.03864615,133.24,133.23,1.52]
[1763655520300,18.12096,133.21,133.09,0.1]
[1763655520516,1.27999999,133.12,133.11,2.24]
[1763655521000,14.24981846,133.12,133.11,2.24]
[1763655521224,1.27999999,133.12,133.11,2.24]
[1763655521402,1.27999999,133.16,133.11,15.87981847]
[1763655521593,83.55992914,133.35,133.11,15.87981847]
[1763655521594,1.27999999,133.18,133.12,0.67]
[1763655521812,1.27999999,133.21,133.12,0.67]
[1763655522023,1.27999999,133.19,133.12,0.67]
[1763655522194,1.27999999,133.22,133.12,0.67]
[1763655522408,1.27999999,133.23,133.12,0.67]
[1763655522608,1.27999999,133.18,133.13,9.78882769]
[1763655522818,1.27999999,133.17,133.14,13.63981847]
[1763655523165,1.27999999,133.15,133.11,2.24]
[1763655523323,1.27999999,133.15,133.13,12.96981847]
[1763655523641,9.50461848,133.26,133.11,2.24]
[1763655523642,1.27999999,133.13,133.11,2.24]
[1763655523799,1.27999999,133.12,133.11,2.24]
[1763655524137,12.96981847,133.14,133.11,15.20981847]
[1763655524138,1.27999999,133.14,133.11,15.20981847]
[1763655524444,1.27999999,133.12,133.11,2.24]
[1763655525718,19.40095999,133.12,133.11,2.24]
[1763655526158,32.37077846,133.12,133.11,2.24]
[1763655526816,42.15960615,133.12,133.11,2.24]
[1763655527359,32.37077846,133.12,133.11,2.24]
[1763655527664,82.37077846,133.12,133.11,2.24]
[1763655527834,92.15960615,133.12,133.11,2.24]
[1763655528030,1.27999999,133.12,133.11,2.24]
[1763655528928,1.27999999,133.14,133.11,2.24]
[1763655529128,1.27999999,133.12,133.11,2.24]
[1763655529327,14.24981846,133.15,133.11,2.24]
[1763655529754,1.27999999,133.13,133.11,2.24]
[1763655529970,1.27999999,133.13,133.12,12.96981847]
[1763655530131,5.55524054,133.31,133.12,12.96981847]
[1763655530132,1.27999999,133.17,133.13,9.78882769]
[1763655530329,1.27999999,133.17,133.14,12.96981847]
[1763655530562,50.0,133.26,133.12,0.67]
[1763655530563,1.27999999,133.15,133.12,0.67]
[1763655530737,1.27999999,133.15,133.11,2.24]
[1763655530738,1.27999999,133.12,133.11,2.24]
[1763655531235,19.40095999,133.12,133.11,2.24]
[1763655531559,32.37077846,133.12,133.11,2.24]
[1763655531929,32.37077846,133.12,132.97,12.96981847]
[1763655531930,1.27999999,133.0,132.97,12.96981847]
[1763655532130,1.27999999,133.05,132.99,12.96981847]
[1763655532358,1.27999999,133.06,133.02,12.96981847]
[1763655532561,1.27999999,133.09,132.99,0.67]
[1763655532749,1.27999999,133.12,133.08,12.96981847]
[1763655532933,1.27999999,133.1,133.09,2.22]
[1763655533256,2.0,133.21,133.09,2.89]
[1763655533257,1.27999999,133.12,133.09,2.89]